fUSD/lending_fUSD_20250606
["ID","MTS","AMOUNT","RATE_DAILY","PERIOD"]
[364753542,1749229853231,-547.32980497,0.00027726,5]
[364753543,1749229853240,-673.95,0.00027726,5]
[364753544,1749229853249,-480.0,0.00027726,5]
[364753545,1749229853258,-931.01,0.00027726,5]
[364753546,1749229853267,-480.0,0.00027726,5]
[364753547,1749229853276,-480.0,0.00027726,5]
[364753548,1749229853286,-480.0,0.00027726,5]
[364753549,1749229853295,-480.0,0.00027726,5]
[364753550,1749229853305,-480.0,0.00027726,5]
[364753551,1749229853315,-480.0,0.00027726,5]
[364753552,1749229853324,-480.0,0.00027726,5]
[364753553,1749229853334,-480.0,0.00027726,5]
[364753554,1749229853343,-609.77,0.00027726,5]
[364753555,1749229853352,-480.0,0.00027726,5]
[364753556,1749229853362,-480.0,0.00027726,5]
[364753557,1749229853371,-1281.91,0.00027726,5]
[364753558,1749229853381,-480.0,0.00027726,5]
[364753559,1749229853391,-816.61,0.00027726,5]
[364753560,1749229853401,-764.02,0.00027726,5]
[364753561,1749229853410,-1371.81,0.00027726,5]
[364753562,1749229853420,-1580.65,0.00027726,5]
[364753563,1749229853429,-480.0,0.00027726,5]
[364753564,1749229853439,-480.0,0.00027726,5]
[364753565,1749229853449,-583.36,0.00027726,5]
[364753566,1749229853458,-533.29,0.00027726,5]
[364753567,1749229853468,-480.0,0.00027726,5]
[364753568,1749229853478,-979.62,0.00027726,5]
[364753569,1749229853487,-480.0,0.00027726,5]
[364753570,1749229853497,-480.0,0.00027726,5]
[364753571,1749229853507,-480.0,0.00027726,5]
[364753572,1749229853516,-680.63,0.00027726,5]
[364753573,1749229853526,-610.2,0.00027726,5]
[364753574,1749229853536,-480.0,0.00027726,5]
[364753575,1749229853545,-767.55,0.00027726,5]
[364753576,1749229853554,-480.0,0.00027726,5]
[364753577,1749229853564,-480.0,0.00027726,5]
[364753578,1749229853573,-480.0,0.00027726,5]
[364753579,1749229853583,-1108.13,0.00027726,5]
[364753580,1749229853592,-480.0,0.00027726,5]
[364753581,1749229853604,-1055.72,0.00027726,5]
[364753582,1749229853615,-480.0,0.00027726,5]
[364753583,1749229853624,-1139.21,0.00027726,5]
[364753584,1749229853633,-480.0,0.00027726,5]
[364753585,1749229853643,-1478.89,0.00027726,5]
[364753586,1749229853654,-2223.030084,0.00027726,7]
[364753587,1749229853663,-732.79,0.00027726,5]
[364753588,1749229853673,-480.0,0.00027726,5]
[364753589,1749229853684,-2223.030084,0.00027726,7]
[364753590,1749229853693,-480.0,0.00027726,5]
[364753591,1749229853703,-731.83,0.00027726,5]
[364753592,1749229853712,-480.0,0.00027726,5]
[364753593,1749229853721,-639.73,0.00027726,5]
[364753594,1749229853730,-151.0,0.00027726,7]
[364753595,1749229853741,-956.02,0.00027726,5]
[364753596,1749229853750,-1036.79,0.00027726,5]
[364753597,1749229853759,-1739.7,0.00027726,5]
[364753598,1749229853770,-2235.27,0.00027726,5]
[364753599,1749229853779,-480.0,0.00027726,5]
[364753600,1749229853789,-480.0,0.00027726,5]
[364753601,1749229853798,-504.96,0.00027726,5]
[364753602,1749229853808,-480.0,0.00027726,5]
[364753603,1749229853817,-539.64,0.00027726,5]
[364753604,1749229853826,-416.51988831,0.00027726,5]
[364753605,1749229853836,-1178.04,0.00027726,5]
[364753606,1749229853845,-151.0,0.00027726,7]
[364753607,1749229853855,-480.0,0.00027726,5]
[364753608,1749229853864,-480.0,0.00027726,5]
[364753609,1749229853873,-480.0,0.00027726,5]
[364753610,1749229853883,-480.0,0.00027726,5]
[364753611,1749229853893,-995.2,0.00027726,5]
[364753612,1749229853903,-1300.218002,0.00027726,7]
[364753613,1749229853912,-163.73286546,0.00027726,5]
[364753614,1749229853921,-1300.218002,0.00027726,7]
[364753615,1749229853931,-480.0,0.00027726,5]
[364753616,1749229853940,-1178.83,0.00027726,5]
[364753617,1749229853949,-1100.7,0.00027726,5]
[364753618,1749229853959,-1284.64,0.00027726,5]
[364753619,1749229853968,-751.51,0.00027726,5]
[364753620,1749229853978,-835.65,0.00027726,5]
[364753621,1749229854058,-151.0,0.00027726,7]
[364753622,1749229854067,-3636.22,0.00027726,5]
[364753623,1749229854076,-480.0,0.00027726,5]
[364753624,1749229854086,-600.0,0.00027726,30]
[364753625,1749229854095,-1074.16,0.00027726,5]
[364753626,1749229854104,-5321.9,0.00027726,5]
[364753627,1749229854114,-480.0,0.00027726,5]
[364753628,1749229854123,-480.0,0.00027726,5]
[364753629,1749229854132,-480.0,0.00027726,5]
[364753630,1749229854142,-987.67,0.00027726,5]
[364753631,1749229854153,-480.0,0.00027726,5]
[364753632,1749229854162,-2080.45,0.00027726,5]
[364753633,1749229854172,-700.11,0.00027726,5]
[364753634,1749229854181,-480.0,0.00027726,5]
[364753635,1749229854190,-734.66,0.00027726,5]
[364753636,1749229854199,-6395.04,0.00027726,5]
[364753637,1749229854210,-480.0,0.00027726,5]
[364753638,1749229854219,-480.0,0.00027726,5]
[364753639,1749229854229,-835.42,0.00027726,5]
[364753640,1749229854238,-480.0,0.00027726,5]
[364753641,1749229854248,-713.79,0.00027726,5]
[364753642,1749229854257,-2288.96,0.00027726,5]
[364753643,1749229854267,-480.0,0.00027726,5]
[364753644,1749229854276,-1697.69,0.00027726,5]
[364753645,1749229854286,-727.92,0.00027726,5]
[364753646,1749229854295,-151.0,0.00027726,7]
[364753647,1749229854305,-12208.62,0.00027726,5]
[364753648,1749229854315,-3886.76,0.00027726,5]
[364753649,1749229854325,-480.0,0.00027726,5]
[364753650,1749229854334,-6723.06,0.00027726,5]
[364753651,1749229854344,-2328.748482,0.00027726,5]
[364753652,1749229854353,-480.0,0.00027726,5]
[364753653,1749229854363,-480.0,0.00027726,5]
[364753654,1749229854372,-3392.86,0.00027726,5]
[364753655,1749229854381,-151.0,0.00027726,7]
[364753656,1749229854391,-480.0,0.00027726,5]
[364753657,1749229854402,-540.76,0.00027726,5]
[364753658,1749229854412,-527.54,0.00027726,5]
[364753659,1749229854422,-151.0,0.00027726,7]
[364753660,1749229854431,-480.0,0.00027726,5]
[364753661,1749229854440,-1317.74,0.00027726,5]
[364753662,1749229854450,-2152.11,0.00027726,5]
[364753663,1749229854459,-9718.94,0.00027726,5]
[364753664,1749229854469,-500.0,0.00027726,2]
[364753665,1749229854478,-480.0,0.00027726,5]
[364753666,1749229854488,-76268.38,0.00027726,5]
[364753667,1749229854498,-978.82,0.00027726,5]
[364753668,1749229854507,-480.0,0.00027726,5]
[364753669,1749229854517,-183.12,0.00027726,5]
[364753670,1749229854526,-480.0,0.00027726,5]
[364753671,1749229854537,-587.06,0.00027726,5]
[364753672,1749229854547,-500.0,0.00027726,5]
[364753673,1749229854556,-2136.804126,0.00027726,5]
[364753674,1749229854565,-499.91,0.00027726,5]
[364753675,1749229854575,-725.67,0.00027726,5]
[364753676,1749229854585,-480.0,0.00027726,5]
[364753677,1749229854594,-480.0,0.00027726,5]
[364753678,1749229854606,-3764.36,0.00027726,5]
[364753679,1749229854617,-9211.11,0.00027726,5]
[364753680,1749229854627,-1051.06,0.00027726,5]
[364753681,1749229854637,-151.0,0.00027726,7]
[364753682,1749229854648,-1366.23,0.00027726,5]
[364753683,1749229854657,-556.78642225,0.00027726,5]
[364753684,1749229854667,-983.23,0.00027726,5]
[364753685,1749229854676,-1624.53,0.00027726,5]
[364753686,1749229854688,-2500.86,0.00027726,5]
[364753687,1749229854697,-508.09,0.00027726,5]
[364753688,1749229854706,-2408.48,0.00027726,5]
[364753689,1749229854715,-473.147601,0.00027726,7]
[364753690,1749229854724,-480.0,0.00027726,5]
[364753691,1749229854733,-1199.82,0.00027726,5]
[364753692,1749229854742,-480.0,0.00027726,5]
[364753693,1749229854752,-1867.89,0.00027726,5]
[364753694,1749229854761,-1202.07,0.00027726,5]
[364753695,1749229854771,-473.147601,0.00027726,7]
[364753696,1749229854781,-1234.98,0.00027726,5]
[364753697,1749229854790,-745.42,0.00027726,5]
[364753698,1749229854799,-1000.0,0.00027726,5]
[364753699,1749229854808,-480.0,0.00027726,5]
[364753700,1749229854818,-3729.37,0.00027726,5]
[364753701,1749229854827,-1324.5,0.00027726,5]
[364753702,1749229854837,-480.0,0.00027726,5]
[364753703,1749229854846,-480.0,0.00027726,5]
[364753704,1749229854855,-722.71,0.00027726,5]
[364753705,1749229854865,-1417.88,0.00027726,5]
[364753706,1749229854874,-1476.23,0.00027726,5]
[364753707,1749229854884,-480.0,0.00027726,5]
[364753708,1749229854892,-868.6,0.00027726,5]
[364753709,1749229854903,-1888.62,0.00027726,5]
[364753710,1749229854912,-480.0,0.00027726,5]
[364753711,1749229854921,-166.1773604,0.00027726,5]
[364753712,1749229854932,-632.37,0.00027726,5]
[364753713,1749229854941,-480.0,0.00027726,5]
[364753714,1749229854951,-756.12,0.00027726,5]
[364753715,1749229854961,-1440.17,0.00027726,5]
[364753716,1749229854971,-1194.84,0.00027726,2]
[364753717,1749229854981,-2062.89,0.00027726,5]
[364753718,1749229854991,-557.64,0.00027726,5]
[364753719,1749229855002,-1788.1,0.00027726,5]
[364753720,1749229855013,-480.0,0.00027726,5]
[364753721,1749229855023,-1072.25,0.00027726,5]
[364753722,1749229855033,-480.0,0.00027726,5]
[364753723,1749229855042,-3928.65,0.00027726,5]
[364753724,1749229855052,-13781.59,0.00027726,5]
[364753725,1749229855063,-480.0,0.00027726,5]
[364753726,1749229855072,-480.0,0.00027726,5]
[364753727,1749229855082,-480.0,0.00027726,5]
[364753728,1749229855092,-480.0,0.00027726,5]
[364753729,1749229855102,-3569.21,0.00027726,5]
[364753730,1749229855112,-151.294165,0.00027726,5]
[364753731,1749229855121,-2660.61,0.00027726,5]
[364753732,1749229855132,-480.0,0.00027726,5]
[364753733,1749229855141,-480.0,0.00027726,5]
[364753734,1749229855152,-1139.74,0.00027726,5]
[364753735,1749229855162,-480.0,0.00027726,5]
[364753736,1749229855172,-151.0,0.00027726,7]
[364753737,1749229855181,-150.0,0.00027726,5]
[364753738,1749229855190,-827.81,0.00027726,5]
[364753739,1749229855201,-480.0,0.00027726,5]
[364753740,1749229855211,-428.0,0.00027726,2]
[364753741,1749229855221,-480.0,0.00027726,5]
[364753742,1749229855230,-480.0,0.00027726,5]
[364753743,1749229855239,-1869.68,0.00027726,5]
[364753744,1749229855248,-5122.75,0.00027726,5]
[364753745,1749229855258,-151.0,0.00027726,7]
[364753746,1749229855268,-297.740512,0.00027726,7]
[364753747,1749229855278,-480.0,0.00027726,5]
[364753748,1749229855288,-1027.17,0.00027726,5]
[364753749,1749229855298,-3640.47,0.00027726,5]
[364753750,1749229855307,-993.4,0.00027726,5]
[364753752,1749229855317,-1731.35,0.00027726,5]
[364753753,1749229855327,-2022.0,0.00027726,5]
[364753754,1749229855336,-2864.55,0.00027726,5]
[364753755,1749229855346,-946.49,0.00027726,5]
[364753756,1749229855355,-297.740512,0.00027726,7]
[364753757,1749229855365,-480.0,0.00027726,5]
[364753758,1749229855374,-480.0,0.00027726,5]
[364753759,1749229855384,-480.0,0.00027726,5]
[364753760,1749229855395,-150.0,0.00027726,5]
[364753761,1749229855404,-988.86,0.00027726,5]
[364753762,1749229855415,-480.0,0.00027726,5]
[364753763,1749229855425,-576.53,0.00027726,5]
[364753764,1749229855435,-500.0,0.00027726,5]
[364753765,1749229855445,-1518.37,0.00027726,5]
[364753766,1749229855454,-1165.4,0.00027726,5]
[364753767,1749229855464,-516.9,0.00027726,5]
[364753768,1749229855474,-150.0,0.00027726,5]
[364753769,1749229855484,-1631.49,0.00027726,5]
[364753770,1749229855494,-150.0,0.00027726,5]
[364753771,1749229855504,-502.37,0.00027726,5]
[364753772,1749229855514,-150.0,0.00027726,5]
[364753773,1749229855523,-818.38,0.00027726,5]
[364753774,1749229855533,-480.0,0.00027726,5]
[364753775,1749229855543,-150.0,0.00027726,5]
[364753776,1749229855553,-480.0,0.00027726,5]
[364753777,1749229855563,-150.0,0.00027726,5]
[364753778,1749229855573,-575.57,0.00027726,5]
[364753779,1749229855582,-898.12,0.00027726,5]
[364753780,1749229855592,-480.0,0.00027726,5]
[364753781,1749229855602,-480.0,0.00027726,5]
[364753782,1749229855614,-544.71,0.00027726,5]
[364753783,1749229855624,-484.48,0.00027726,5]
[364753784,1749229855634,-480.0,0.00027726,5]
[364753785,1749229855644,-5019.69,0.00027726,5]
[364753786,1749229855655,-1270.81,0.00027726,5]
[364753787,1749229855664,-1082.09,0.00027726,5]
[364753788,1749229855674,-347.566727,0.00027726,7]
[364753789,1749229855686,-480.0,0.00027726,5]
[364753790,1749229855696,-642.47,0.00027726,5]
[364753791,1749229855705,-347.566727,0.00027726,7]
[364753792,1749229855715,-480.0,0.00027726,5]
[364753793,1749229855725,-659.85,0.00027726,5]
[364753794,1749229855737,-480.0,0.00027726,5]
[364753795,1749229855748,-706.87,0.00027726,5]
[364753796,1749229855757,-1411.91,0.00027726,5]
[364753797,1749229855767,-1928.36,0.00027726,5]
[364753798,1749229855777,-480.0,0.00027726,5]
[364753799,1749229855786,-2180.66,0.00027726,5]
[364753800,1749229855796,-702.23,0.00027726,5]
[364753801,1749229855806,-480.0,0.00027726,5]
[364753802,1749229855815,-696.68,0.00027726,5]
[364753803,1749229855825,-1531.65,0.00027726,5]
[364753804,1749229855835,-1808.13,0.00027726,5]
[364753805,1749229855844,-151.0,0.00027726,7]
[364753806,1749229855854,-480.0,0.00027726,5]
[364753807,1749229855864,-583.23703772,0.00027726,5]
[364753808,1749229855874,-480.0,0.00027726,5]
[364753809,1749229855883,-10000.0,0.00027726,7]
[364753810,1749229855892,-480.0,0.00027726,5]
[364753811,1749229855903,-1978.88,0.00027726,5]
[364753812,1749229855913,-480.0,0.00027726,5]
[364753813,1749229855922,-2908.51,0.00027726,5]
[364753814,1749229855931,-669.35,0.00027726,5]
[364753815,1749229855941,-480.0,0.00027726,5]
[364753816,1749229855951,-1262.05,0.00027726,5]
[364753817,1749229855960,-10000.0,0.00027726,7]
[364753818,1749229855970,-480.0,0.00027726,5]
[364753819,1749229855980,-5114.778034,0.00027726,7]
[364753820,1749229855990,-480.0,0.00027726,5]
[364753821,1749229855999,-1585.44,0.00027726,5]
[364753822,1749229856009,-863.16,0.00027726,5]
[364753823,1749229856019,-716.92,0.00027726,5]
[364753824,1749229856028,-480.0,0.00027726,5]
[364753825,1749229856038,-480.0,0.00027726,5]
[364753826,1749229856048,-495.39431166,0.00027726,5]
[364753827,1749229856058,-480.0,0.00027726,5]
[364753828,1749229856068,-490.14,0.00027726,5]
[364753829,1749229856077,-10266.6,0.00027726,5]
[364753830,1749229856087,-480.0,0.00027726,5]
[364753831,1749229856096,-2790.95,0.00027726,5]
[364753832,1749229856106,-1988.94,0.00027726,5]
[364753833,1749229856116,-562.55,0.00027726,5]
[364753834,1749229856125,-480.0,0.00027726,5]
[364753835,1749229856135,-480.0,0.00027726,5]
[364753836,1749229856144,-480.0,0.00027726,5]
[364753837,1749229856154,-518.16,0.00027726,5]
[364753838,1749229856164,-620.01,0.00027726,5]
[364753839,1749229856173,-576.54,0.00027726,5]
[364753840,1749229856183,-496.01,0.00027726,5]
[364753842,1749229856193,-480.0,0.00027726,5]
[364753843,1749229856205,-480.0,0.00027726,5]
[364753844,1749229856214,-480.0,0.00027726,5]
[364753845,1749229856224,-3901.93,0.00027726,5]
[364753846,1749229856234,-480.0,0.00027726,5]
[364753847,1749229856243,-480.0,0.00027726,5]
[364753848,1749229856252,-1302.74,0.00027726,5]
[364753849,1749229856262,-14757.67,0.00027726,5]
[364753850,1749229856272,-2148.25,0.00027726,5]
[364753851,1749229856281,-9779.61,0.00027726,5]
[364753852,1749229856291,-480.0,0.00027726,5]
[364753853,1749229856301,-21008.66,0.00027726,5]
[364753854,1749229856311,-673.26,0.00027726,5]
[364753855,1749229856320,-480.0,0.00027726,5]
[364753856,1749229856330,-480.0,0.00027726,5]
[364753857,1749229856340,-889.91,0.00027726,5]
[364753858,1749229856349,-2708.81,0.00027726,5]
[364753859,1749229856359,-776.83,0.00027726,5]
[364753860,1749229856369,-1377.28,0.00027726,5]
[364753861,1749229856378,-585.43,0.00027726,5]
[364753862,1749229856389,-480.0,0.00027726,5]
[364753863,1749229856399,-682.39,0.00027726,5]
[364753864,1749229856408,-2005.29,0.00027726,5]
[364753865,1749229856418,-4252.69,0.00027726,5]
[364753866,1749229856428,-2178.41,0.00027726,5]
[364753867,1749229856438,-848.79,0.00027726,5]
[364753868,1749229856447,-1974.61,0.00027726,5]
[364753869,1749229856457,-827.75,0.00027726,5]
[364753870,1749229856467,-819.47,0.00027726,5]
[364753871,1749229856476,-500.0,0.00027726,5]
[364753872,1749229856486,-480.0,0.00027726,5]
[364753873,1749229856496,-150.0,0.00027726,2]
[364753874,1749229856506,-500.0,0.00027726,5]
[364753875,1749229856515,-480.0,0.00027726,5]
[364753876,1749229856526,-480.0,0.00027726,2]
[364753877,1749229856537,-2003.46,0.00027726,5]
[364753878,1749229856547,-637.64,0.00027726,5]
[364753879,1749229856557,-705.0,0.00027726,5]
[364753880,1749229856566,-1355.4,0.00027726,5]
[364753881,1749229856576,-480.0,0.00027726,5]
[364753882,1749229856586,-480.0,0.00027726,5]
[364753883,1749229856595,-480.0,0.00027726,5]
[364753884,1749229856607,-480.0,0.00027726,5]
[364753885,1749229856618,-480.0,0.00027726,2]
[364753886,1749229856628,-1289.4,0.00027726,5]
[364753887,1749229856637,-841.89,0.00027726,5]
[364753888,1749229856648,-754.23,0.00027726,5]
[364753889,1749229856657,-1582.7,0.00027726,5]
[364753890,1749229856667,-849.03,0.00027726,5]
[364753891,1749229856677,-500.0,0.00027726,5]
[364753892,1749229856686,-739.93,0.00027726,5]
[364753893,1749229856696,-787.91,0.00027726,5]
[364753894,1749229856705,-692.16,0.00027726,5]
[364753895,1749229856715,-150.0,0.00027726,2]
[364753896,1749229856724,-540.0,0.00027726,2]
[364753897,1749229856734,-1648.73,0.00027726,5]
[364753898,1749229856744,-500.0,0.00027726,5]
[364753899,1749229856754,-580.44,0.00027726,5]
[364753900,1749229856763,-150.0,0.00027726,2]
[364753901,1749229856773,-1093.91,0.00027726,5]
[364753902,1749229856782,-488.0,0.00027726,5]
[364753903,1749229856792,-480.0,0.00027726,5]
[364753904,1749229856801,-1017.84,0.00027726,5]
[364753905,1749229856811,-34288.51421164,0.00027732,2]
[364753906,1749229856820,-151.0,0.00027732,7]
[364753907,1749229856830,-251508.8295651,0.00027734,2]
[364753908,1749229856840,-117959.8435486,0.00027734,2]
[364753909,1749229856850,-11227.4532984,0.00027734,2]
[364753910,1749229856859,-300.0,0.00027753,10]
[364753911,1749229856869,-666.0,0.00027753,10]
[364753912,1749229856878,-500.0,0.00027753,5]
[364753913,1749229856888,-500.0,0.00027753,5]
[364753914,1749229856898,-500.0,0.00027753,5]
[364753915,1749229856907,-150.0,0.00027753,5]
[364753916,1749229856917,-500.0,0.00027753,5]
[364753917,1749229856926,-553.20959988,0.00027753,5]
[364753918,1749229856936,-429.0,0.00027753,5]
[364753919,1749229856946,-500.0,0.00027753,5]
[364753920,1749229856956,-150.0,0.00027753,5]
[364753921,1749229856966,-150.0,0.00027753,5]
[364753922,1749229856976,-500.0,0.00027753,5]
[364753923,1749229856985,-500.0,0.00027753,5]
[364753924,1749229856995,-150.0,0.00027753,5]
[364753925,1749229857004,-500.0,0.00027753,5]
[364753926,1749229857014,-500.6854111,0.00027753,5]
[364753927,1749229857023,-500.0,0.00027753,5]
[364753928,1749229857033,-150.0,0.00027753,5]
[364753929,1749229857042,-150.0,0.00027753,5]
[364753930,1749229857052,-150.0,0.00027753,5]
[364753931,1749229857061,-500.0,0.00027753,5]
[364753932,1749229857071,-500.0,0.00027753,5]
[364753933,1749229857080,-500.0,0.00027753,5]
[364753934,1749229857089,-500.0,0.00027753,5]
[364753935,1749229857098,-500.0,0.00027753,5]
[364753936,1749229857108,-500.0,0.00027753,2]
[364753937,1749229857118,-500.0,0.00027753,5]
[364753938,1749229857127,-428.0,0.00027753,2]
[364753939,1749229857137,-2022.0,0.00027753,5]
[364753940,1749229857148,-150.0,0.00027753,5]
[364753941,1749229857158,-500.0,0.00027753,5]
[364753942,1749229857167,-150.0,0.00027753,5]
[364753943,1749229857177,-150.0,0.00027753,5]
[364753944,1749229857187,-150.0,0.00027753,5]
[364753945,1749229857196,-150.0,0.00027753,5]
[364753946,1749229857207,-150.0,0.00027753,5]
[364753947,1749229857216,-500.0,0.00027753,5]
[364753948,1749229857226,-500.0,0.00027753,5]
[364753949,1749229857235,-705.0,0.00027753,5]
[364753950,1749229857245,-500.0,0.00027753,5]
[364753951,1749229857254,-500.0,0.00027753,5]
[364753952,1749229857264,-488.0,0.00027753,5]
[364753953,1749229857274,-151.611789,0.00027754,7]
[364753954,1749229857283,-151.0,0.00027754,7]
[364753955,1749229857293,-151.0,0.00027754,7]
[364753956,1749229857303,-151.0,0.00027754,7]
[364753957,1749229857314,-369.817025,0.00027754,7]
[364753958,1749229857324,-369.817025,0.00027754,7]
[364753959,1749229857334,-154.14598,0.00027754,7]
[364753960,1749229857344,-151.0,0.00027754,7]
[364753961,1749229857354,-1346.978979,0.00027754,7]
[364753962,1749229857363,-1346.978979,0.00027754,7]
[364753963,1749229857374,-229.42916,0.00027754,7]
[364753964,1749229857384,-229.42916,0.00027754,7]
[364753965,1749229857393,-1202.277604,0.00027754,7]
[364753966,1749229857404,-1202.277604,0.00027754,7]
[364753967,1749229857414,-379.208433,0.00027754,7]
[364753968,1749229857424,-379.208433,0.00027754,7]
[364753969,1749229857434,-202.034528,0.00027754,7]
[364753970,1749229857444,-202.034528,0.00027754,7]
[364753971,1749229857454,-887.104213,0.00027754,7]
[364753972,1749229857463,-887.104213,0.00027754,7]
[364753973,1749229857473,-177.7202863,0.00027757,6]
[364753974,1749229857484,-348.32517245,0.00027761,2]
[364753975,1749229857494,-1614.10259472,0.00027762,17]
[364753976,1749229857504,-500.0,0.00027781,5]
[364753977,1749229857515,-500.0,0.00027781,5]
[364753978,1749229857526,-500.0,0.00027781,5]
[364753979,1749229857727,-254.70642229,0.00027781,5]
[364753980,1749229857738,-500.0,0.00027781,5]
[364753981,1749229857747,-429.0,0.00027781,5]
[364753982,1749229857757,-500.0,0.00027781,5]
[364753983,1749229857767,-150.0,0.00027781,5]
[364753984,1749229857776,-200.82433775,0.00027781,5]
[364753985,1749229857786,-500.0,0.00027781,5]
[364753986,1749229857796,-500.0,0.00027781,5]
[364753987,1749229857806,-150.0,0.00027781,5]
[364753988,1749229857815,-500.0,0.00027781,5]
[364753989,1749229857829,-500.0,0.00027781,5]
[364753990,1749229857839,-150.0,0.00027781,5]
[364753991,1749229857848,-150.0,0.00027781,5]
[364753992,1749229857858,-150.0,0.00027781,5]
[364753993,1749229857867,-500.0,0.00027781,5]
[364753994,1749229857876,-500.0,0.00027781,5]
[364753995,1749229857885,-500.0,0.00027781,5]
[364753996,1749229857895,-500.0,0.00027781,5]
[364753997,1749229857904,-305.62743304,0.00027781,5]
[364753998,1749229857914,-500.0,0.00027781,2]
[364753999,1749229857923,-500.0,0.00027781,5]
[364754000,1749229857932,-428.0,0.00027781,2]
[364754001,1749229857941,-2022.0,0.00027781,5]
[364754002,1749229857950,-150.0,0.00027781,5]
[364754003,1749229857960,-500.0,0.00027781,5]
[364754004,1749229857969,-150.0,0.00027781,5]
[364754005,1749229857979,-150.0,0.00027781,5]
[364754006,1749229857988,-500.0,0.00027781,5]
[364754007,1749229857998,-500.0,0.00027781,5]
[364754008,1749229858008,-705.0,0.00027781,5]
[364754009,1749229858017,-150.0,0.00027781,5]
[364754010,1749229858026,-500.0,0.00027781,5]
[364754011,1749229858036,-488.0,0.00027781,5]
[364754012,1749229858045,-34371.923169,0.00027789,2]
[364754013,1749229858055,-654.65002304,0.0002779,2]
[364754014,1749229858064,-2100.0,0.000278,10]
[364754015,1749229858073,-138737.4,0.000278,2]
[364754016,1749229858083,-34288.51421164,0.00027806,2]
[364754017,1749229858092,-151.254161,0.00027808,7]
[364754018,1749229858102,-151.0,0.00027808,7]
[364754019,1749229858112,-151.0,0.00027808,7]
[364754020,1749229858121,-347.392354,0.00027808,7]
[364754021,1749229858131,-347.392354,0.00027808,7]
[364754022,1749229858140,-151.0,0.00027808,7]
[364754023,1749229858151,-151.0,0.00027808,7]
[364754024,1749229858160,-500.0,0.00027808,5]
[364754025,1749229858170,-461.51976516,0.00027808,5]
[364754026,1749229858180,-486.07300312,0.00027808,5]
[364754027,1749229858189,-500.0,0.00027808,5]
[364754028,1749229858199,-429.0,0.00027808,5]
[364754029,1749229858209,-500.0,0.00027808,5]
[364754030,1749229858218,-204.34173649,0.00027808,5]
[364754031,1749229858227,-358.18176395,0.00027808,5]
[364754032,1749229858237,-158.57695402,0.00027808,5]
[364754033,1749229858246,-150.0,0.00027808,5]
[364754034,1749229858255,-500.0,0.00027808,5]
[364754035,1749229858265,-395.74451207,0.00027808,5]
[364754036,1749229858274,-150.0,0.00027808,5]
[364754037,1749229858284,-150.0,0.00027808,5]
[364754038,1749229858293,-150.0,0.00027808,5]
[364754039,1749229858303,-350.0,0.00027808,5]
[364754040,1749229858312,-500.0,0.00027808,5]
[364754041,1749229858322,-500.0,0.00027808,5]
[364754042,1749229858331,-500.0,0.00027808,2]
[364754043,1749229858341,-500.0,0.00027808,5]